[Event "FIDE WCCC G12 2018"]
[Site "Santiago de Compostela"]
[Date "2018.11.15"]
[Round "11"]
[White "Shuqja, Klean"]
[Black "Boramanikar Tanisha S"]
[Result "1/2-1/2"]
[ECO "B33"]
[WhiteElo "1798"]
[BlackElo "1716"]
[Annotator "NA"]
[PlyCount "179"]
[EventDate "2018.11.04"]
[EventType "swiss"]
[EventCountry "ESP"]
[SourceTitle "playchess.com"]
[Source "ChessBase"]
[SourceQuality "1"]
[TimeControl "40/5400+30:1800+30"]

1. e4 {[%emt 0:00:00]} c5 {[%emt 0:00:00]} 2. Nf3 {[%emt 0:00:00]} Nc6 {[%emt 0:00:00]} 3. d4 {[%emt 0:00:00]} cxd4 {[%emt 0:00:00]} 4. Nxd4 {[%emt 0:00:00]} Nf6 {[%emt 0:00:13]} 5. Nc3 {[%emt 0:00:00]} e5 {[%emt 0:00:19]} 6. Ndb5 {[%emt 0:00:00]} d6 {[%emt 0:00:16]} 7. Bg5 {[%emt 0:00:00]} a6 {[%emt 0:00:06]} 8. Na3 {[%emt 0:00:00]} b5 {[%emt 0:00:08]} 9. Nd5 {[%emt 0:00:00]} Be7 {[%emt 0:00:27]} 10. Bxf6 {[%emt 0:00:00]} Bxf6 {[%emt 0:00:13]} 11. c3 {[%emt 0:00:02]} O-O {[%emt 0:00:47]} 12. Nc2 {[%emt 0:00:14]} Rb8 {[%emt 0:01:16]} 13. h4 {[%emt 0:06:43]} h6 {[%emt 0:04:57]} 14. g3 {[%emt 0:06:39]} g6 {[%emt 0:04:51]} 15. Bh3 {[%emt 0:07:07]} Be6 {[%emt 0:07:10]} 16. Nce3 {[%emt 0:09:23]} Bg7 {[%emt 0:01:23]} 17. Qd2 {[%emt 0:08:15]} Qd7 {[%emt 0:01:38]} 18. Bg2 {[%emt 0:03:57]} Rbd8 {[%emt 0:04:38]} 19. h5 {[%emt 0:09:10]} Ne7 {[%emt 0:02:49]} 20. hxg6 {[%emt 0:04:17]} fxg6 {[%emt 0:00:42]} 21. O-O {[%emt 0:02:25]} Nxd5 {[%emt 0:02:49]} 22. Nxd5 {[%emt 0:00:32]} Rf7 {[%emt 0:07:08]} 23. b3 {[%emt 0:03:27]} Qc6 {[%emt 0:10:57]} 24. Nb4 {[%emt 0:02:47]} Qb6 {[%emt 0:00:54]} 25. Nd5 {[%emt 0:04:57]} Qc5 {[%emt 0:00:50]} 26. Qe3 {[%emt 0:10:39]} Rc8 {[%emt 0:04:32]} 27. Rac1 {[%emt 0:02:49]} Bxd5 {[%emt 0:00:59]} 28. exd5 {[%emt 0:00:53]} Qxe3 {[%emt 0:00:42]} 29. fxe3 {[%emt 0:00:02]} Rfc7 {[%emt 0:00:27]} 30. Bh3 {[%emt 0:00:16]} Rf8 {[%emt 0:00:37]} 31. Be6+ {[%emt 0:01:24]} Kh7 {[%emt 0:00:13]} 32. Rxf8 {[%emt 0:00:55]} Bxf8 {[%emt 0:00:01]} 33. c4 {[%emt 0:01:46]} Be7 {[%emt 0:01:27]} 34. e4 {[%emt 0:05:01]} Bg5 {[%emt 0:00:59]} 35. Rc2 {[%emt 0:04:26]} Rc5 {[%emt 0:00:41]} 36. Kf2 {[%emt 0:01:38]} Kg7 {[%emt 0:00:28]} 37. Ke2 {[%emt 0:00:32]} bxc4 {[%emt 0:00:54]} 38. Rxc4 {[%emt 0:04:43]} Rxc4 {[%emt 0:03:40]} 39. bxc4 {[%emt 0:00:04]} Kf6 {[%emt 0:00:32]} 40. a4 {[%emt 0:00:00]} a5 {[%emt 0:00:00]} 41. Kf3 {[%emt 0:09:42]} Bd2 {[%emt 0:02:35]} 42. Bc8 {[%emt 0:01:48]} Bb4 {[%emt 0:00:14]} 43. Be6 {[%emt 0:01:15]} h5 {[%emt 0:01:06]} 44. Bd7 {[%emt 0:10:09]} Ke7 {[%emt 0:06:24]} 45. Be6 {[%emt 0:00:35]} Be1 {[%emt 0:00:43]} 46. Bh3 {[%emt 0:03:35]} g5 {[%emt 0:02:05]} 47. Bf5 {[%emt 0:00:16]} Kd8 {[%emt 0:00:24]} 48. Bg6 {[%emt 0:02:05]} h4 {[%emt 0:00:21]} 49. gxh4 {[%emt 0:00:32]} gxh4 {[%emt 0:00:05]} 50. Bf5 {[%emt 0:00:43]} Kc7 {[%emt 0:00:17]} 51. Kg4 {[%emt 0:02:58]} Kb6 {[%emt 0:00:47]} 52. Bd7 {[%emt 0:00:33]} Kc5 {[%emt 0:00:32]} 53. Bf5 {[%emt 0:00:58]} Kxc4 {[%emt 0:01:11]} 54. Bd7 {[%emt 0:00:50]} Kb3 {[%emt 0:02:17]} 55. Bc6 {[%emt 0:00:38]} Kc2 {[%emt 0:00:25]} 56. Bd7 {[%emt 0:00:30]} Kd2 {[%emt 0:01:18]} 57. Kh3 {[%emt 0:00:26]} Ke3 {[%emt 0:04:10]} 58. Bf5 {[%emt 0:00:17]} Kd4 {[%emt 0:00:12]} 59. Kg4 {[%emt 0:00:22]} Bf2 {[%emt 0:02:06]} 60. Kh3 {[%emt 0:00:23]} Bg3 {[%emt 0:02:06]} 61. Kg4 {[%emt 0:00:28]} Ke3 {[%emt 0:02:52]} 62. Kh3 {[%emt 0:00:27]} Be1 {[%emt 0:00:08]} 63. Bg6 {[%emt 0:00:20]} Kf3 {[%emt 0:00:26]} 64. Bf5 {[%emt 0:00:17]} Bg3 {[%emt 0:00:29]} 65. Bg6 {[%emt 0:00:11]} Ke3 {[%emt 0:01:01]} 66. Bf5 {[%emt 0:00:08]} Kd4 {[%emt 0:00:27]} 67. Bg6 {[%emt 0:00:06]} Kc4 {[%emt 0:00:10]} 68. Bf5 {[%emt 0:00:15]} Kc5 {[%emt 0:00:14]} 69. Bg6 {[%emt 0:00:19]} Be1 {[%emt 0:00:28]} 70. Bf5 {[%emt 0:00:09]} Kb6 {[%emt 0:00:13]} 71. Bg6 {[%emt 0:00:15]} Kc7 {[%emt 0:00:07]} 72. Bf5 {[%emt 0:00:10]} Kd8 {[%emt 0:00:04]} 73. Bg6 {[%emt 0:00:11]} Ke7 {[%emt 0:00:08]} 74. Bf5 {[%emt 0:00:09]} Kf6 {[%emt 0:00:05]} 75. Bh7 {[%emt 0:00:07]} Kg5 {[%emt 0:00:33]} 76. Bf5 {[%emt 0:00:07]} Kf4 {[%emt 0:00:05]} 77. Bh7 {[%emt 0:00:07]} Ke3 {[%emt 0:00:21]} 78. Bf5 {[%emt 0:00:03]} Kd2 {[%emt 0:00:16]} 79. Bg6 {[%emt 0:00:08]} Kd3 {[%emt 0:00:06]} 80. Bf5 {[%emt 0:00:07]} Kd4 {[%emt 0:00:04]} 81. Bg6 {[%emt 0:00:05]} Ke3 {[%emt 0:00:57]} 82. Bf5 {[%emt 0:00:04]} Ke2 {[%emt 0:00:07]} 83. Bg6 {[%emt 0:00:04]} Kd3 {[%emt 0:00:06]} 84. Bf5 {[%emt 0:00:03]} Kd4 {[%emt 0:00:04]} 85. Bg6 {[%emt 0:00:02]} Ke3 {[%emt 0:00:27]} 86. Bf5 {[%emt 0:00:03]} Ke2 {[%emt 0:00:14]} 87. Bg6 {[%emt 0:00:04]} Kf1 {[%emt 0:00:05]} 88. Bf5 {[%emt 0:00:03]} Kg1 {[%emt 0:00:04]} 89. Bg6 {[%emt 0:00:06]} Kh1 {[%emt 0:00:26]} 90. Bf5 {[%emt 0:00:05]} 1/2-1/2

[Event "FIDE WCCC G12 2018"]
[Site "Santiago de Compostela"]
[Date "2018.11.15"]
[Round "11"]
[White "Starosta, Martyna"]
[Black "Zhu, Jenny"]
[Result "1-0"]
[ECO "B41"]
[WhiteElo "1790"]
[BlackElo "1242"]
[Annotator "NA"]
[PlyCount "69"]
[EventDate "2018.11.04"]
[EventType "swiss"]
[EventCountry "ESP"]
[SourceTitle "playchess.com"]
[Source "ChessBase"]
[SourceQuality "1"]
[TimeControl "40/5400+30:1800+30"]

1. e4 {[%emt 0:00:00]} c5 {[%emt 0:00:00]} 2. Nf3 {[%emt 0:00:00]} e6 {[%emt 0:00:00]} 3. d4 {[%emt 0:00:00]} cxd4 {[%emt 0:00:00]} 4. Nxd4 {[%emt 0:00:02]} a6 {[%emt 0:00:04]} 5. c4 {[%emt 0:00:11]} Nf6 {[%emt 0:00:21]} 6. Nc3 {[%emt 0:00:09]} Bb4 {[%emt 0:00:43]} 7. Qd3 {[%emt 0:05:40]} d5 {[%emt 0:03:57]} 8. cxd5 {[%emt 0:02:50]} exd5 {[%emt 0:01:32]} 9. exd5 {[%emt 0:08:54]} Nxd5 {[%emt 0:04:08]} 10. Bd2 {[%emt 0:01:35]} O-O {[%emt 0:07:48]} 11. Be2 {[%emt 0:02:09]} Re8 {[%emt 0:17:43]} 12. O-O {[%emt 0:01:45]} Bc5 {[%emt 0:02:19]} 13. Nb3 {[%emt 0:06:19]} Nxc3 {[%emt 0:03:35]} 14. Bxc3 {[%emt 0:00:42]} Qxd3 {[%emt 0:02:04]} 15. Bxd3 {[%emt 0:00:09]} Ba7 {[%emt 0:00:33]} 16. Rfe1 {[%emt 0:01:04]} Bd7 {[%emt 0:02:54]} 17. Na5 {[%emt 0:03:52]} Rxe1+ {[%emt 0:06:35]} 18. Rxe1 {[%emt 0:00:15]} Bc6 {[%emt 0:00:59]} 19. Nxb7 {[%emt 0:05:19]} Nd7 {[%emt 0:02:21]} 20. Nd6 {[%emt 0:03:33]} Nc5 {[%emt 0:01:10]} 21. Bc4 {[%emt 0:00:58]} Ne6 {[%emt 0:07:32]} 22. Nxf7 {[%emt 0:01:13]} Kxf7 {[%emt 0:00:04]} 23. Rxe6 {[%emt 0:01:14]} Bb5 {[%emt 0:01:23]} 24. Bb3 {[%emt 0:02:25]} g6 {[%emt 0:13:21]} 25. Rxa6+ {[%emt 0:01:39]} Ke8 {[%emt 0:00:45]} 26. Rf6 {[%emt 0:01:55]} Rd8 {[%emt 0:01:12]} 27. Re6+ {[%emt 0:02:23]} Kd7 {[%emt 0:02:17]} 28. Re5 {[%emt 0:02:03]} Kc6 {[%emt 0:04:59]} 29. Re7 {[%emt 0:03:18]} Bc5 {[%emt 0:01:53]} 30. Rxh7 {[%emt 0:01:28]} Re8 {[%emt 0:00:32]} 31. Rg7 {[%emt 0:00:58]} Bd3 {[%emt 0:00:22]} 32. Ba4+ {[%emt 0:00:12]} Bb5 {[%emt 0:00:08]} 33. Rxg6+ {[%emt 0:00:20]} Bd6 {[%emt 0:00:24]} 34. Bxb5+ {[%emt 0:00:10]} Kxb5 {[%emt 0:00:07]} 35. Rxd6 {[%emt 0:00:14] Kc6} 1-0

[Event "FIDE WCCC G12 2018"]
[Site "Santiago de Compostela"]
[Date "2018.11.15"]
[Round "11"]
[White "Munkhzul, Davaakhuu"]
[Black "Denic, Hana"]
[Result "1-0"]
[ECO "C97"]
[WhiteElo "1781"]
[BlackElo "1636"]
[Annotator "NA"]
[PlyCount "148"]
[EventDate "2018.11.04"]
[EventType "swiss"]
[EventCountry "ESP"]
[SourceTitle "playchess.com"]
[Source "ChessBase"]
[SourceQuality "1"]
[TimeControl "40/5400+30:1800+30"]

1. e4 {[%emt 0:00:00]} e5 {[%emt 0:00:00]} 2. Nf3 {[%emt 0:00:00]} Nc6 {[%emt 0:00:00]} 3. Bb5 {[%emt 0:00:00]} a6 {[%emt 0:00:00]} 4. Ba4 {[%emt 0:00:00]} Nf6 {[%emt 0:00:19]} 5. O-O {[%emt 0:00:00]} Be7 {[%emt 0:00:16]} 6. Re1 {[%emt 0:00:00]} b5 {[%emt 0:00:15]} 7. Bb3 {[%emt 0:00:00]} O-O {[%emt 0:00:30]} 8. h3 {[%emt 0:00:00]} d6 {[%emt 0:00:29]} 9. c3 {[%emt 0:00:00]} Na5 {[%emt 0:00:57]} 10. Bc2 {[%emt 0:00:00]} c5 {[%emt 0:01:03]} 11. d4 {[%emt 0:00:02]} Qc7 {[%emt 0:00:30]} 12. Nbd2 {[%emt 0:00:05]} Bd7 {[%emt 0:01:55]} 13. Nf1 {[%emt 0:00:07]} Nc4 {[%emt 0:06:54]} 14. Ng3 {[%emt 0:00:18]} Ne8 {[%emt 0:03:36]} 15. d5 {[%emt 0:00:58]} g6 {[%emt 0:01:58]} 16. b3 {[%emt 0:00:52]} Nb6 {[%emt 0:00:12]} 17. Nh2 {[%emt 0:00:35]} Ng7 {[%emt 0:02:20]} 18. Ng4 {[%emt 0:00:46]} Bxg4 {[%emt 0:07:36]} 19. hxg4 {[%emt 0:00:17]} Bh4 {[%emt 0:03:17]} 20. Qf3 {[%emt 0:00:36]} Qe7 {[%emt 0:01:28]} 21. Kh2 {[%emt 0:00:54]} Bg5 {[%emt 0:03:57]} 22. Rh1 {[%emt 0:01:25]} Bxc1 {[%emt 0:01:10]} 23. Raxc1 {[%emt 0:00:07]} Qg5 {[%emt 0:00:27]} 24. Rcf1 {[%emt 0:00:43]} Ne8 {[%emt 0:02:00]} 25. Kg1 {[%emt 0:00:43]} Nf6 {[%emt 0:01:56]} 26. Bd1 {[%emt 0:00:15]} Nbd7 {[%emt 0:00:58]} 27. Rh3 {[%emt 0:03:28]} Kg7 {[%emt 0:07:33]} 28. Kh2 {[%emt 0:01:19]} Rh8 {[%emt 0:01:00]} 29. Rh1 {[%emt 0:00:25]} h6 {[%emt 0:05:20]} 30. Kg1 {[%emt 0:00:40]} Rh7 {[%emt 0:01:38]} 31. Qe3 {[%emt 0:03:32]} Qxe3 {[%emt 0:01:16]} 32. fxe3 {[%emt 0:00:02]} Nb6 {[%emt 0:02:01]} 33. Kf2 {[%emt 0:01:05]} c4 {[%emt 0:00:54]} 34. Bf3 {[%emt 0:00:33]} Nfd7 {[%emt 0:05:18]} 35. g5 {[%emt 0:00:41]} h5 {[%emt 0:00:31]} 36. Ne2 {[%emt 0:00:10]} Rhh8 {[%emt 0:00:41]} 37. b4 {[%emt 0:01:21]} Na4 {[%emt 0:09:05]} 38. g4 {[%emt 0:06:28]} hxg4 {[%emt 0:01:21]} 39. Rxh8 {[%emt 0:00:59]} Rxh8 {[%emt 0:00:09]} 40. Rxh8 {[%emt 0:00:00]} Kxh8 {[%emt 0:00:00]} 41. Bxg4 {[%emt 0:00:10]} Ndb6 {[%emt 0:00:41]} 42. Ke1 {[%emt 0:00:56]} Kg7 {[%emt 0:05:29]} 43. Kd2 {[%emt 0:00:22]} Kf8 {[%emt 0:00:55]} 44. Ng1 {[%emt 0:00:58]} Ke7 {[%emt 0:02:18]} 45. Bh3 {[%emt 0:00:11]} Nd7 {[%emt 0:05:08]} 46. Nf3 {[%emt 0:00:29]} Nab6 {[%emt 0:00:56]} 47. Nh2 {[%emt 0:01:27]} Nf8 {[%emt 0:03:29]} 48. Bg4 {[%emt 0:00:50]} Nh7 {[%emt 0:04:07]} 49. Nf3 {[%emt 0:00:06]} f6 {[%emt 0:00:48]} 50. Nh4 {[%emt 0:00:43]} fxg5 {[%emt 0:03:38]} 51. Nxg6+ {[%emt 0:01:02]} Kf6 {[%emt 0:03:19]} 52. Bf5 {[%emt 0:04:53]} Nxd5 {[%emt 0:10:38]} 53. Nh8 {[%emt 0:00:07]} Ne7 {[%emt 0:04:39]} 54. Bxh7 {[%emt 0:01:20]} Kg7 {[%emt 0:00:05]} 55. Bf5 {[%emt 0:03:50]} Kxh8 {[%emt 0:00:24]} 56. Bg4 {[%emt 0:00:17]} Kg7 {[%emt 0:01:45]} 57. Ke2 {[%emt 0:00:31]} Kf6 {[%emt 0:04:18]} 58. Kf3 {[%emt 0:00:13]} d5 {[%emt 0:02:08]} 59. a3 {[%emt 0:00:46]} Kg6 {[%emt 0:05:56]} 60. Be6 {[%emt 0:00:21]} dxe4+ {[%emt 0:02:59]} 61. Kxe4 {[%emt 0:00:19]} Kf6 {[%emt 0:00:26]} 62. Bg4 {[%emt 0:00:14]} Nc6 {[%emt 0:01:24]} 63. Bc8 {[%emt 0:00:19]} a5 {[%emt 0:00:48]} 64. Bd7 {[%emt 0:00:34]} axb4 {[%emt 0:00:42]} 65. axb4 {[%emt 0:00:01]} Na7 {[%emt 0:00:22]} 66. Kd5 {[%emt 0:00:09]} Ke7 {[%emt 0:00:56]} 67. Bf5 {[%emt 0:00:02]} g4 {[%emt 0:01:08]} 68. Bxg4 {[%emt 0:00:06]} Kf6 {[%emt 0:00:04]} 69. Bh3 {[%emt 0:00:33]} Kg5 {[%emt 0:00:21]} 70. Kxe5 {[%emt 0:00:31]} Nc6+ {[%emt 0:00:16]} 71. Ke4 {[%emt 0:00:09]} Kf6 {[%emt 0:00:12]} 72. Bd7 {[%emt 0:00:08]} Na7 {[%emt 0:00:36]} 73. Kd5 {[%emt 0:00:08]} Ke7 {[%emt 0:00:17]} 74. Bg4 {[%emt 0:00:04]} Kd8 {[%emt 0:01:20]} 1-0

[Event "FIDE WCCC G12 2018"]
[Site "Santiago de Compostela"]
[Date "2018.11.15"]
[Round "11"]
[White "Nurmanova, Alua"]
[Black "Kairbekova, Amina"]
[Result "1-0"]
[ECO "C00"]
[WhiteElo "1780"]
[BlackElo "1939"]
[Annotator "NA"]
[PlyCount "135"]
[EventDate "2018.11.04"]
[EventType "swiss"]
[EventCountry "ESP"]
[SourceTitle "playchess.com"]
[Source "ChessBase"]
[SourceQuality "1"]
[TimeControl "40/5400+30:1800+30"]

1. e4 {[%emt 0:00:00]} e6 {[%emt 0:00:00]} 2. Qe2 {[%emt 0:00:10]} Nc6 {[%emt 0:00:08]} 3. Nf3 {[%emt 0:00:21]} e5 {[%emt 0:00:05]} 4. c3 {[%emt 0:00:39]} Nf6 {[%emt 0:00:28] C00: French: Unusual White 2nd moves} 5. g3 {[%emt 0:00:25]} a5 {[%emt 0:01:54]} 6. Bg2 {[%emt 0:05:54]} g6 {[%emt 0:06:52]} 7. O-O {[%emt 0:11:37]} Bg7 {[%emt 0:00:11]} 8. d3 {[%emt 0:08:49]} O-O {[%emt 0:00:34]} 9. Nbd2 $146 {[%emt 0:07:10]} ({Predecessor:} 9. Na3 d5 10. Nb5 h6 11. Re1 a4 12. Bd2 {½-½ (53) Vajda,A (2353)-Ionescu,C (2482) Bucharest 1999}) 9... d5 {[%emt 0:01:36]} 10. a4 {[%emt 0:06:19]} Re8 {[%emt 0:01:44]} 11. Rd1 {[%emt 0:03:21]} b6 {[%emt 0:03:32]} 12. Nf1 {[%emt 0:05:51]} Ba6 {[%emt 0:00:52]} 13. Qc2 {[%emt 0:01:52]} Qd7 {[%emt 0:01:50]} 14. Bg5 {[%emt 0:04:52]} Bb7 {[%emt 0:03:28]} 15. Ne3 {[%emt 0:07:15]} d4 {[%emt 0:01:53]} 16. Nc4 {[%emt 0:10:52]} h6 {[%emt 0:01:43]} 17. Bxf6 {[%emt 0:00:41]} Bxf6 {[%emt 0:00:06]} 18. Rac1 {[%emt 0:04:04]} Bg7 {[%emt 0:04:58]} 19. cxd4 {[%emt 0:03:58]} exd4 {[%emt 0:02:09]} 20. Na3 {[%emt 0:03:30]} Rac8 {[%emt 0:01:45]} 21. Nb5 {[%emt 0:02:06]} Nb4 {[%emt 0:01:00]} 22. Qb3 $1 {[%emt 0:03:53]} c6 {[%emt 0:08:01]} 23. Na3 {[%emt 0:00:25]} b5 {[%emt 0:01:43]} 24. h4 {[%emt 0:02:10]} Ba6 {[%emt 0:03:55]} 25. Bf1 {[%emt 0:01:26]} Qa7 {[%emt 0:09:03]} 26. h5 {[%emt 0:01:05]} g5 {[%emt 0:05:26]} 27. Nh2 {[%emt 0:00:14]} Rb8 {[%emt 0:00:24]} 28. Ng4 $2 {[%emt 0:00:46] [#]} (28. Rd2 $15) 28... Bc8 $1 {[%emt 0:00:20]} 29. Be2 {[%emt 0:00:35]} (29. Bh3 $142 Be6 30. Nxh6+ Bxh6 31. Bxe6 Rxe6 32. Nc2) 29... Be6 {[%emt 0:00:10]} 30. Nc4 {[%emt 0:00:49]} bxc4 {[%emt 0:00:07]} 31. dxc4 {[%emt 0:00:11] [#]} d3 $1 {[%emt 0:01:34]} 32. Bf3 {[%emt 0:00:27]} Red8 {[%emt 0:00:38]} 33. Rd2 {[%emt 0:00:30]} Nc2 {[%emt 0:00:30]} 34. Qa2 {[%emt 0:00:13]} Bxg4 {[%emt 0:01:19]} 35. Bxg4 {[%emt 0:00:06]} Rxb2 {[%emt 0:00:15]} 36. Rcxc2 {[%emt 0:03:20]} dxc2 {[%emt 0:00:53]} 37. Rxd8+ {[%emt 0:00:26]} Bf8 {[%emt 0:04:08]} 38. Qxb2 {[%emt 0:00:33]} Qe7 {[%emt 0:00:04]} 39. Rxf8+ {[%emt 0:01:16]} Qxf8 {[%emt 0:00:04]} 40. Qxc2 {[%emt 0:00:00]} Qb4 {[%emt 0:00:00]} 41. Kg2 {[%emt 0:00:52]} c5 {[%emt 0:00:35]} 42. e5 {[%emt 0:01:43]} Qb7+ {[%emt 0:00:34]} 43. f3 {[%emt 0:00:21]} Qc7 {[%emt 0:05:06]} 44. e6 {[%emt 0:01:02]} Qe5 {[%emt 0:00:06]} 45. exf7+ {[%emt 0:00:25]} Kf8 {[%emt 0:00:02]} 46. Qe4 {[%emt 0:10:07]} Qb2+ {[%emt 0:00:23]} 47. Kh3 {[%emt 0:00:12]} Kxf7 {[%emt 0:00:57]} 48. Qe6+ {[%emt 0:04:45]} Kf8 {[%emt 0:00:04]} 49. Qxh6+ {[%emt 0:00:53]} Ke8 {[%emt 0:01:14]} 50. Qxg5 {[%emt 0:03:08]} Qa1 {[%emt 0:01:15]} 51. Be6 {[%emt 0:03:06]} Qh1+ {[%emt 0:02:56]} 52. Kg4 {[%emt 0:04:25]} Qe1 {[%emt 0:00:53]} 53. Qg8+ {[%emt 0:01:49]} Ke7 {[%emt 0:00:07]} 54. Qf7+ {[%emt 0:01:00]} Kd6 {[%emt 0:00:09]} 55. Qd7+ {[%emt 0:00:18]} Ke5 {[%emt 0:00:08]} 56. f4+ {[%emt 0:00:20]} Ke4 {[%emt 0:00:28]} 57. Qd5+ {[%emt 0:01:56]} Ke3 {[%emt 0:04:04]} 58. Qe5+ {[%emt 0:02:00]} Kf2 {[%emt 0:01:49]} 59. Qxe1+ {[%emt 0:01:47]} Kxe1 {[%emt 0:00:05]} 60. h6 {[%emt 0:00:37]} Kd2 {[%emt 0:00:19]} 61. h7 {[%emt 0:00:29]} Kc2 {[%emt 0:00:29]} 62. h8=Q {[%emt 0:00:41]} Kb3 {[%emt 0:00:05]} 63. Kf3 {[%emt 0:00:40]} Kxa4 {[%emt 0:00:34]} 64. Qb8 {[%emt 0:00:12]} Ka3 {[%emt 0:01:47]} 65. Bf5 {[%emt 0:00:35]} a4 {[%emt 0:00:16]} 66. Bc2 {[%emt 0:00:49]} Ka2 {[%emt 0:00:55]} 67. Bxa4 {[%emt 0:00:12]} Ka1 {[%emt 0:04:17]} 68. Bc2 {[%emt 0:00:46]} 1-0

[Event "FIDE WCCC G12 2018"]
[Site "Santiago de Compostela"]
[Date "2018.11.15"]
[Round "11"]
[White "Wagner, Margarethe"]
[Black "Wisniowski, Natalie"]
[Result "1/2-1/2"]
[ECO "C42"]
[WhiteElo "1766"]
[BlackElo "1504"]
[Annotator "NA"]
[PlyCount "111"]
[EventDate "2018.11.04"]
[EventType "swiss"]
[EventCountry "ESP"]
[SourceTitle "playchess.com"]
[Source "ChessBase"]
[SourceQuality "1"]
[TimeControl "40/5400+30:1800+30"]

1. e4 {[%emt 0:00:00]} e5 {[%emt 0:00:00]} 2. Nf3 {[%emt 0:00:00]} Nf6 {[%emt 0:00:00]} 3. Nc3 {[%emt 0:00:38]} Bb4 {[%emt 0:00:07]} 4. d3 {[%emt 0:00:41]} d5 {[%emt 0:00:54]} 5. exd5 {[%emt 0:01:40]} Nxd5 {[%emt 0:00:21]} 6. Bd2 {[%emt 0:01:12]} O-O {[%emt 0:01:03]} 7. Nxd5 {[%emt 0:01:28]} Bxd2+ {[%emt 0:00:31]} 8. Qxd2 {[%emt 0:00:35]} Qxd5 {[%emt 0:00:27]} 9. Be2 {[%emt 0:02:47]} Nc6 {[%emt 0:01:12]} 10. O-O {[%emt 0:02:11]} h6 {[%emt 0:02:04]} 11. Rfd1 {[%emt 0:04:00]} Rd8 {[%emt 0:04:03]} 12. c3 {[%emt 0:07:07]} b6 {[%emt 0:09:34]} 13. Qe3 {[%emt 0:05:48]} Bb7 {[%emt 0:02:53]} 14. b4 {[%emt 0:10:18]} Re8 {[%emt 0:10:23]} 15. a4 {[%emt 0:03:31]} Rad8 {[%emt 0:02:00]} 16. Nh4 {[%emt 0:07:12]} e4 {[%emt 0:06:46]} 17. Qg3 {[%emt 0:05:07]} Qe5 {[%emt 0:06:34]} 18. Qxe5 {[%emt 0:01:18]} Nxe5 {[%emt 0:00:59]} 19. d4 {[%emt 0:02:07]} Nd7 {[%emt 0:02:31]} 20. Nf5 {[%emt 0:01:41]} Nf6 {[%emt 0:04:24]} 21. c4 {[%emt 0:04:06]} h5 {[%emt 0:05:08]} 22. Ne3 {[%emt 0:01:54]} Rd7 {[%emt 0:02:00]} 23. Ra2 {[%emt 0:04:10]} Red8 {[%emt 0:02:37]} 24. Rad2 {[%emt 0:01:19]} c5 {[%emt 0:05:55]} 25. bxc5 {[%emt 0:00:10]} bxc5 {[%emt 0:00:19]} 26. d5 {[%emt 0:00:06]} g6 {[%emt 0:02:06]} 27. Rb2 {[%emt 0:01:12]} Kf8 {[%emt 0:01:58]} 28. Rb5 {[%emt 0:01:58]} Rc8 {[%emt 0:01:35]} 29. Rdb1 {[%emt 0:01:39]} Ba6 {[%emt 0:01:14]} 30. R5b2 {[%emt 0:01:26]} Ke7 {[%emt 0:03:05]} 31. h3 {[%emt 0:00:54]} Ne8 {[%emt 0:03:37]} 32. Kf1 {[%emt 0:02:17]} f5 {[%emt 0:01:58]} 33. g3 {[%emt 0:01:10]} Nd6 {[%emt 0:01:32]} 34. Rc1 {[%emt 0:02:04]} Rf8 {[%emt 0:04:03]} 35. Ng2 {[%emt 0:06:31]} Kf6 {[%emt 0:03:26]} 36. Nf4 {[%emt 0:02:47]} Rff7 {[%emt 0:01:19]} 37. Ne6 {[%emt 0:03:17]} Rb7 {[%emt 0:01:57]} 38. Rxb7 {[%emt 0:00:49]} Nxb7 {[%emt 0:00:22]} 39. h4 {[%emt 0:04:59]} Re7 {[%emt 0:02:05]} 40. Ke1 {[%emt 0:00:00]} Rxe6 {[%emt 0:00:00]} 41. dxe6 {[%emt 0:03:03]} Kxe6 {[%emt 0:03:34]} 42. Kd2 {[%emt 0:02:30]} Ke5 {[%emt 0:01:46]} 43. Kc3 {[%emt 0:05:12]} Nd6 {[%emt 0:05:25]} 44. Rd1 {[%emt 0:03:14]} Bb7 {[%emt 0:01:14]} 45. a5 {[%emt 0:02:52]} Bc6 {[%emt 0:06:13]} 46. a6 {[%emt 0:04:18]} Nf7 {[%emt 0:03:02]} 47. Rb1 {[%emt 0:02:42]} f4 {[%emt 0:01:52]} 48. gxf4+ {[%emt 0:02:01]} Kxf4 {[%emt 0:00:18]} 49. Rg1 {[%emt 0:00:39]} Ne5 {[%emt 0:02:49]} 50. Rg5 {[%emt 0:02:05]} Bd7 {[%emt 0:01:32]} 51. Rg1 {[%emt 0:02:10]} Bc8 {[%emt 0:01:34]} 52. Ra1 {[%emt 0:00:40]} Nc6 {[%emt 0:01:49]} 53. Rg1 {[%emt 0:01:01]} Ne5 {[%emt 0:00:18]} 54. Ra1 {[%emt 0:01:22]} Nc6 {[%emt 0:00:15]} 55. Rg1 {[%emt 0:01:25]} Ne5 {[%emt 0:00:08]} 56. Ra1 {[%emt 0:00:20]} 1/2-1/2

[Event "FIDE WCCC G12 2018"]
[Site "Santiago de Compostela"]
[Date "2018.11.15"]
[Round "11"]
[White "Dakic, Marta"]
[Black "Pang, Ashley"]
[Result "0-1"]
[ECO "B23"]
[WhiteElo "1756"]
[BlackElo "1604"]
[Annotator "NA"]
[PlyCount "70"]
[EventDate "2018.11.04"]
[EventType "swiss"]
[EventCountry "ESP"]
[SourceTitle "playchess.com"]
[Source "ChessBase"]
[SourceQuality "1"]
[TimeControl "40/5400+30:1800+30"]

1. e4 {[%emt 0:00:00]} c5 {[%emt 0:00:00]} 2. Nc3 {[%emt 0:00:00]} b6 {[%emt 0:00:00]} 3. f4 {[%emt 0:00:00]} e6 {[%emt 0:00:07]} 4. Nf3 {[%emt 0:00:32]} Bb7 {[%emt 0:00:09]} 5. g3 {[%emt 0:01:27]} a6 {[%emt 0:01:19]} 6. Bg2 {[%emt 0:01:06]} Qc7 {[%emt 0:01:03]} 7. d3 {[%emt 0:01:29]} Nf6 {[%emt 0:01:29]} 8. O-O {[%emt 0:01:39]} Be7 {[%emt 0:01:07]} 9. Bd2 {[%emt 0:03:11]} d5 {[%emt 0:02:43]} 10. e5 {[%emt 0:01:43]} Nfd7 {[%emt 0:00:27]} 11. Qe2 {[%emt 0:02:27]} Nc6 {[%emt 0:03:05]} 12. a3 {[%emt 0:05:47]} Rc8 {[%emt 0:06:55]} 13. Qf2 {[%emt 0:05:28]} O-O {[%emt 0:03:13]} 14. Rae1 {[%emt 0:09:56]} Ndb8 {[%emt 0:11:06]} 15. Ne2 {[%emt 0:04:16]} b5 {[%emt 0:07:59]} 16. Kh1 {[%emt 0:09:38]} d4 {[%emt 0:03:49]} 17. g4 {[%emt 0:08:29]} Nd7 {[%emt 0:03:45]} 18. g5 {[%emt 0:01:32]} Bd8 {[%emt 0:07:35]} 19. Ng3 {[%emt 0:04:56]} Ne7 {[%emt 0:03:41]} 20. Ne4 {[%emt 0:04:33]} Bxe4 {[%emt 0:05:49]} 21. Rxe4 {[%emt 0:00:48]} Re8 {[%emt 0:02:54]} 22. Nh4 {[%emt 0:03:46]} Nf8 {[%emt 0:02:31]} 23. Bh3 {[%emt 0:05:12]} Rb8 {[%emt 0:03:47]} 24. Bg4 {[%emt 0:06:31]} a5 {[%emt 0:03:20]} 25. f5 {[%emt 0:02:28]} exf5 {[%emt 0:01:23]} 26. Nxf5 {[%emt 0:00:05]} Nxf5 {[%emt 0:01:15]} 27. Qxf5 {[%emt 0:00:12]} Rb7 {[%emt 0:01:53]} 28. Qf2 {[%emt 0:04:17]} b4 {[%emt 0:07:18]} 29. e6 {[%emt 0:02:52]} f6 {[%emt 0:02:29]} 30. gxf6 {[%emt 0:00:09]} Bxf6 {[%emt 0:01:27]} 31. Rg1 {[%emt 0:04:30]} Qe7 {[%emt 0:04:46]} 32. Bh5 {[%emt 0:02:19]} Rc8 {[%emt 0:00:59]} 33. Rf4 {[%emt 0:02:16]} Kh8 {[%emt 0:00:28]} 34. Bg4 {[%emt 0:02:03]} Rb6 {[%emt 0:00:52]} 35. Rf1 {[%emt 0:00:43]} Nxe6 {[%emt 0:03:14]} 0-1